lending/lending_fUSD_20240111
["ID","MTS","AMOUNT","RATE_DAILY","PERIOD"]
[311256503,1704997865908,-508.60454544,0.0003349,4]
[311256504,1704997865917,-2613.80282427,0.0003452,2]
[311256505,1704997865929,-3040.245,0.0003452,2]
[311256506,1704997865940,-1778.37459073,0.0003452,2]
[311256507,1704997865950,-64.13730555,0.00034794,2]
[311256508,1704997865961,-8876.02755458,0.00034794,2]
[311256509,1704997865981,-2208.46876287,0.00034794,2]
[311256510,1704997865991,-202.0,0.000349,2]
[311256511,1704997866001,-14864.844831,0.00034931,2]
[311256512,1704997866010,-18581.056039,0.00035068,2]
[311256513,1704997866021,-293.84,0.00043422,2]
[311256514,1704997866030,-37170.6855565,0.00045,30]
[311256515,1704997866041,-69561.08094495,0.00045,30]
[311256516,1704997866052,-1539.85648596,0.00045,30]
[311256517,1704997867073,-60689.78340452,0.00045,30]
[311256518,1704997867086,-449497.5975184,0.00045,30]
[311256519,1704997867096,-151.0,0.00045,14]
[311256520,1704997867106,-151.0,0.00045,14]
[311256521,1704997867115,-151.0,0.00045,14]
[311256522,1704997867125,-151.0,0.00045,14]
[311256523,1704997867134,-151.0,0.00045,14]
[311256524,1704997867143,-151.0,0.00045,14]
[311256525,1704997867152,-2500.0,0.00045,30]
[311256526,1704997867162,-169.918984,0.00045,14]
[311256527,1704997867172,-169.918984,0.00045,14]
[311256528,1704997867181,-169.918984,0.00045,14]
[311256529,1704997867191,-169.918984,0.00045,14]
[311256530,1704997867200,-175.06689065,0.00045,14]
[311256531,1704997867213,-682.87976334,0.00045,14]
[311256532,1704997867787,2471.25996537,0.00022105,2]
[311256533,1704997868467,844.80069332,0.0002175,2]
[311256534,1704997897616,280.14979655,0.00022362,2]
[311256536,1704997927776,1000.0,0.00021724,2]
[311256537,1704997953842,2185.66496649,0.00022138,2]
[311256538,1704997980282,417.34873446,0.00022487,2]
[311256539,1704997982215,335.49760117,0.0002249,2]
[311256540,1704997985707,215.93753758,0.00022489,2]
[311256541,1704997986705,761.3017059,0.00022584,4]
[311256542,1704997987065,215.93753757,0.0002249,2]
[311256543,1704997988292,215.93753757,0.0002249,2]
[311256544,1704998004018,161.49527051,0.0002249,2]
[311256545,1704998014936,1436.0691,0.0002249,2]
[311256546,1704998021296,3455.2444,0.00022489,2]
[311256547,1704998036857,161.52772454,0.00022484,2]
[311256548,1704998038412,199.74,0.00028795,120]
[311256549,1704998051251,1000.0,0.0002249,2]
[311256550,1704998106146,336.73772468,0.00021589,2]
[311256551,1704998112621,335.49760117,0.0002249,2]
[311256552,1704998115907,160.23062821,0.0002249,2]
[311256559,1704998221087,6079.2175,0.00022489,2]
[311256564,1704998233228,335.49760117,0.0002249,2]
[311256565,1704998286350,8305.43689424,0.0002249,2]
[311256566,1704998296138,1000.0,0.00022489,2]
[311256567,1704998296855,306.84639372,0.0002249,2]
[311256569,1704998343516,335.49760117,0.0002249,2]
[311256570,1704998363327,1691.288,0.00022489,2]
[311256571,1704998480485,705.41846479,0.000225,2]
[311256572,1704998487249,455.1640171,0.0002249,2]
[311256573,1704998555447,1000.0,0.00022489,2]
[311256575,1704998672751,398.26851498,0.0002249,2]
[311256577,1704998732842,250.16449949,0.0002249,2]
[311256578,1704998801493,1000.0,0.00022489,2]
[311256579,1704998803648,68000.2219,0.00022487,2]
[311256580,1704998843117,-295.08684247,0.00022581,2]
[311256581,1704998843137,-173.89319056,0.00022581,2]
[311256582,1704998843156,-300.0,0.00022582,2]
[311256583,1704998843176,-1475.64080497,0.00022583,2]
[311256585,1704998863136,348.48495059,0.0002249,2]
[311256586,1704998933502,-295.08684247,0.00022581,2]
[311256587,1704998933523,-300.0,0.00022582,2]
[311256588,1704998933543,-731.48,0.00022583,2]
[311256589,1704998933564,-32235.89242124,0.00022583,2]
[311256590,1704998933584,-155.43758441,0.00022584,2]
[311256591,1704998933604,-4282.16304304,0.00022584,2]
[311256592,1704998933626,-158.96797182,0.00022584,2]
[311256593,1704998933646,-159.98061969,0.00022584,2]
[311256594,1704998933667,-1769.55009119,0.00022584,2]
[311256595,1704998933687,-155.53818178,0.00022584,2]
[311256596,1704998933708,-155.0,0.00022584,2]
[311256597,1704998933728,-3315.33985506,0.00022584,2]
[311256598,1704998933748,-233.82560412,0.00022584,2]
[311256599,1704998933769,-44241.66661389,0.00022587,2]
[311256600,1704998933789,-252.23869713,0.00022587,2]
[311256601,1704998933811,-1654.6697476,0.00022587,2]
[311256602,1704998933831,-18965.09955286,0.00022587,2]
[311256603,1704998933851,-155.27713894,0.00022587,2]
[311256604,1704998933871,-834.28848893,0.00022588,2]
[311256605,1704998933893,-1055555.73341897,0.00022589,2]
[311256606,1704998933914,-100000.0,0.0002259,2]
[311256607,1704998933934,-197695.1694,0.0002259,2]
[311256608,1704998933955,-30879.4459,0.0002259,2]
[311256609,1704998933975,-881.7444,0.0002259,2]
[311256610,1704998933995,-206.86435981,0.00022797,2]
[311256611,1704998934015,-155.48553423,0.00022798,2]
[311256612,1704998934034,-328.755,0.00022798,2]
[311256613,1704998934055,-499.99,0.00022798,2]
[311256614,1704998934082,-517.02,0.00022798,2]
[311256615,1704998934104,-932.80587925,0.00023,2]
[311256616,1704998934124,-200.84765735,0.00024,2]
[311256617,1704998934158,-155.67956808,0.00024,2]
[311256618,1704998934180,-430.89321108,0.00024,2]
[311256619,1704998934203,-634.64,0.00024368,2]
[311256620,1704998934225,-8305.4368942,0.00024482,2]
[311256621,1704998934246,-420.0,0.00024525,2]
[311256622,1704998934267,-167.05182833,0.00025,2]
[311256623,1704998934288,-201.64051555,0.00025,2]
[311256624,1704998934309,-1017.16964654,0.00025,2]
[311256625,1704998934330,-692.73695879,0.00025,2]
[311256626,1704998934356,-302.84681763,0.00025,2]
[311256627,1704998934377,-1581.98629386,0.00025,2]
[311256628,1704998934397,-1246.87746617,0.00025,2]
[311256629,1704998934417,-239.9633075,0.00025,2]
[311256630,1704998934437,-650.0,0.00025,2]
[311256635,1704998987557,100000.0,0.00022489,2]
[311256675,1704999031994,-366.40529695,0.00025866,2]
[311256678,1704999032006,-348.07470305,0.00025866,2]
[311256679,1704999032015,-715.82,0.00025918,2]
[311256681,1704999032025,-717.82,0.00025971,2]
[311256683,1704999032035,-710.2,0.00026076,2]
[311256685,1704999032045,-2000.0,0.00026187,2]
[311256686,1704999032054,-211.91,0.000262,2]
[311256687,1704999032064,-250.0,0.00026267,2]
[311256688,1704999032073,-250.0,0.00026379,2]
[311256689,1704999032082,-163.61,0.00026384,2]
[311256690,1704999032091,-154.59,0.00026449,10]
[311256691,1704999032101,-284.49,0.00026467,4]
[311256692,1704999032110,-3120.38671417,0.00026474,2]
[311256693,1704999032134,-1553.53575242,0.00026474,2]
[311256694,1704999032146,-723.29676624,0.00026474,2]
[311256695,1704999032157,-474.7803758,0.00026474,2]
[311256696,1704999032194,-2433.43728557,0.00026474,2]
[311256697,1704999032203,-150.0,0.00026497,2]
[311256698,1704999032212,-163.61,0.00026521,2]
[311256699,1704999032221,-800.0,0.00026564,2]
[311256700,1704999032231,-4543.02271443,0.00026575,2]
[311256701,1704999032242,-4280.85728557,0.00026575,2]
[311256702,1704999032251,-180.08,0.00026598,2]
[311256703,1704999032261,-634.64,0.00026632,2]
[311256704,1704999032270,-587.0,0.00026634,2]
[311256705,1704999032279,-163.61,0.00026659,2]
[311256706,1704999032288,-391.09,0.00026712,2]
[311256707,1704999032297,-163.61,0.00026796,2]
[311256708,1704999032307,-200.0,0.00026844,2]
[311256709,1704999032316,-4443.93,0.00026845,2]
[311256710,1704999032326,-163.15,0.00026849,2]
[311256711,1704999032335,-165.31,0.00026863,2]
[311256712,1704999032345,-200.0,0.00026925,2]
[311256713,1704999032354,-163.61,0.00026934,2]
[311256714,1704999032364,-1359.85,0.00026987,2]
[311256715,1704999032374,-1000.0,0.00027,2]
[311256716,1704999032384,-165.31,0.00027004,2]
[311256717,1704999032395,-163.61,0.00027071,2]
[311256718,1704999032405,-14866.0,0.00027124,2]
[311256719,1704999032417,-165.31,0.00027146,2]
[311256720,1704999032427,-194.08,0.0002715,2]
[311256721,1704999032436,-817.43473582,0.00027186,2]
[311256722,1704999032445,-817.43473583,0.00027186,2]
[311256723,1704999032454,-163.61,0.00027209,2]
[311256724,1704999032464,-165.31,0.00027287,2]
[311256725,1704999032473,-163.61,0.00027346,2]
[311256726,1704999032483,-2506.93398851,0.00027397,2]
[311256727,1704999032492,-155.0,0.00027397,2]
[311256729,1704999032501,-250.0,0.00027397,2]
[311256731,1704999032511,-2500.0,0.00027397,4]
[311256732,1704999032520,-305.16,0.00027397,2]
[311256733,1704999032529,-165.31,0.00027429,2]
[311256734,1704999032538,-163.61,0.00027484,2]
[311256735,1704999032547,-305.16,0.00027556,2]
[311256736,1704999032557,-165.31,0.0002757,2]
[311256737,1704999032566,-163.61,0.00027621,2]
[311256738,1704999032576,-166.95,0.0002763,2]
[311256739,1704999032585,-391.09,0.0002769,2]
[311256740,1704999032594,-200.84765735,0.0002771,2]
[311256741,1704999032603,-165.31,0.00027711,2]
[311256742,1704999032613,-1581.98629386,0.00027713,2]
[311256743,1704999032622,-305.16,0.00027714,2]
[311256744,1704999032631,-163.61,0.00027759,2]
[311256745,1704999032641,-200.0,0.00027795,3]
[311256746,1704999032650,-165.31,0.00027853,2]
[311256747,1704999032660,-305.16,0.00027872,2]
[311256748,1704999032670,-165.31,0.00027994,2]
[311256749,1704999032679,-687.67126358,0.00028,2]
[311256750,1704999032689,-202.73182804,0.00028028,2]
[311256751,1704999032698,-150.28,0.00028029,2]
[311256752,1704999032707,-305.16,0.0002803,2]
[311256753,1704999032716,-165.31,0.00028136,2]
[311256754,1704999032727,-305.16,0.00028189,2]
[311256755,1704999032736,-1172.85315558,0.00028272,6]
[311256756,1704999032745,-360.1226351,0.00028272,2]
[311256757,1704999032755,-165.31,0.00028277,2]
[311256758,1704999032764,-305.16,0.00028347,2]
[311256759,1704999032774,-165.31,0.00028418,2]
[311256760,1704999032783,-8305.4368942,0.00028465,2]
[311256761,1704999032793,-305.16,0.00028505,2]
[311256762,1704999032802,-150.28,0.00028509,2]
[311256763,1704999032812,-165.31,0.0002856,2]
[311256764,1704999032821,-305.16,0.00028664,2]
[311256765,1704999032831,-200.0,0.00028665,5]
[311256766,1704999032844,-391.09,0.00028668,2]
[311256767,1704999032854,-165.31,0.00028701,2]
[311256768,1704999032863,-155.0,0.00028767,2]
[311256769,1704999032873,-166.95,0.0002877,2]
[311256770,1704999032882,-305.16,0.00028822,2]
[311256771,1704999032891,-165.31,0.00028843,2]
[311256772,1704999032901,-634.64,0.00028895,2]
[311256773,1704999032911,-823.0,0.00028925,2]
[311256774,1704999032920,-165.31,0.00028984,2]
[311256775,1704999032930,-150.28,0.00028988,2]
[311256776,1704999032940,-165.31,0.00029125,2]
[311256777,1704999032949,-165.31,0.00029267,2]
[311256778,1704999032958,-165.31,0.00029408,2]
[311256779,1704999032967,-150.28,0.00029467,2]
[311256780,1704999032978,-187.63828412,0.000295,3]
[311256781,1704999032987,-200.0,0.00029536,6]
[311256782,1704999032997,-9989.30842745,0.00029546,2]
[311256783,1704999033010,-9110.96710997,0.00029546,2]
[311256784,1704999033020,-204.90189003,0.00029547,2]
[311256785,1704999033064,-1589.76308293,0.00029547,2]
[311256786,1704999033075,-333.33502704,0.00029547,2]
[311256787,1704999033084,-116.66497296,0.00029547,2]
[311256788,1704999033095,-2011.33502704,0.00029547,2]
[311256789,1704999033105,-183.22153351,0.00029547,2]
[311256790,1704999033116,-496.20108709,0.00029547,2]
[311256792,1704999037958,-1448.5773794,0.00029547,2]
[311256793,1704999037968,-2128.0,0.00029547,2]
[311256794,1704999037978,-2128.0,0.00029547,2]
[311256795,1704999037987,-2128.0,0.00029547,2]
[311256796,1704999037996,-2128.0,0.00029547,2]
[311256797,1704999038006,-650.0,0.00029547,2]
[311256798,1704999038015,-129241.2966234,0.00029548,2]
[311256799,1704999038072,-11369.02083117,0.00029548,2]
[311256800,1704999038084,-2345.49457667,0.00029548,2]
[311256801,1704999038243,-47997.49783929,0.00029548,2]
[311256802,1704999038255,-2527.90648765,0.00029548,2]
[311256803,1704999038264,-33055.72379515,0.00029548,2]
[311256804,1704999038274,-165.31,0.0002955,2]
[311256805,1704999038283,-932.20126637,0.00029644,2]
[311256806,1704999038292,-577.14140395,0.00029645,2]
[311256807,1704999038302,-525.14638503,0.00029646,2]
[311256808,1704999038311,-197.60101586,0.00029646,2]
[311256809,1704999038320,-1261.66522266,0.00029646,2]
[311256810,1704999038330,-391.09,0.00029647,2]
[311256811,1704999038340,-195.68945489,0.000298,2]
[311256812,1704999038349,-800.0,0.00029884,2]
[311256813,1704999038359,-166.95,0.0002991,2]
[311256814,1704999038369,-150.28,0.00029947,2]
[311256815,1704999038379,-290.42846466,0.0002998,3]
[311256816,1704999038390,-171.98990679,0.0003,4]
[311256817,1704999038399,-445.44211474,0.0003,4]
[311256818,1704999038410,-155.0,0.0003,4]
[311256819,1704999038422,-461.6883313,0.0003,4]
[311256820,1704999038432,-716.32220065,0.0003,4]
[311256821,1704999038441,-18357.95070748,0.0003,4]
[311256822,1704999038454,-636.13844692,0.0003,4]
[311256823,1704999038463,-581.6237216,0.0003,2]
[311256824,1704999038473,-155.0,0.0003,2]
[311256825,1704999038482,-690.72186391,0.0003,2]
[311256826,1704999038492,-72797.28205453,0.0003,4]
[311256827,1704999038501,-155.0,0.0003,4]
[311256829,1704999038511,-812.78051941,0.0003,4]
[311256831,1704999038520,-162938.50142273,0.0003,4]
[311256835,1704999038548,-2331.34797,0.0003,4]
[311256837,1704999038560,-9372.69779824,0.0003,4]
[311256839,1704999038571,-406.34638363,0.0003,4]
[311256842,1704999038583,-3252.89656189,0.0003,4]
[311256845,1704999038606,-130065.14315725,0.0003,4]
[311256847,1704999038616,-155.0,0.0003,4]
[311256849,1704999038625,-8824.68108968,0.0003,4]
[311256850,1704999038635,-169.66258545,0.0003,4]
[311256851,1704999038645,-155.0,0.0003,4]
[311256852,1704999038654,-207.98056403,0.0003,4]
[311256853,1704999038663,-2420.05567297,0.0003,2]
[311256854,1704999038676,-202.0,0.0003,2]
[311256855,1704999038685,-153.0,0.0003,2]
[311256856,1704999038695,-289.48719423,0.00030134,2]
[311256857,1704999038705,-300.0,0.00030136,2]
[311256858,1704999038714,-300.0,0.00030136,2]
[311256859,1704999038723,-160.569182,0.00030136,2]
[311256860,1704999038733,-8160.33,0.00030137,2]
[311256861,1704999038742,-153.84,0.00030137,2]
[311256862,1704999038752,-10000.0,0.00030137,2]
[311256863,1704999038761,-155.0,0.00030137,2]
[311256864,1704999038771,-200.0,0.000302,2]
[311256865,1704999038780,-200.0,0.00030406,8]
[311256866,1704999038790,-150.28,0.00030426,2]
[311256867,1704999038799,-8305.4368942,0.00030457,2]
[311256868,1704999038809,-173.78,0.00030541,2]
[311256869,1704999038818,-391.09,0.00030625,2]
[311256870,1704999038827,-150.0,0.000308,2]
[311256871,1704999038837,-150.0,0.000308,2]
[311256872,1704999038849,-290.9336572,0.000308,2]
[311256873,1704999038858,-151.68522207,0.000309,2]
[311256874,1704999038868,-151.68522207,0.000309,2]
[311256875,1704999038877,-151.68522207,0.000309,2]
[311256876,1704999038886,-151.68522207,0.000309,2]
[311256877,1704999038896,-151.68522207,0.000309,2]
[311256878,1704999038905,-151.68522207,0.000309,2]
[311256879,1704999038917,-151.68522207,0.000309,2]
[311256880,1704999038927,-151.68522207,0.000309,2]
[311256881,1704999038938,-151.68522207,0.000309,2]
[311256882,1704999038947,-151.68522207,0.000309,2]
[311256883,1704999038956,-151.68522207,0.000309,2]
[311256884,1704999038966,-720.08,0.000309,2]
[311256885,1704999038975,-150.28,0.00030905,2]
[311256886,1704999038985,-237.5410763,0.00031,2]
[311256887,1704999038994,-153.84,0.0003105,2]
[311256888,1704999039003,-166.95,0.0003105,2]
[311256889,1704999039012,-634.64,0.00031159,2]
[311256890,1704999039025,-200.0,0.00031277,9]
[311256891,1704999039035,-348.48495055,0.00031334,5]
[311256892,1704999039044,-150.28,0.00031385,2]
[311256893,1704999039053,-840.0,0.00031413,3]
[311256894,1704999039063,-362.43,0.00031507,2]
[311256895,1704999039072,-155.0,0.00031507,2]
[311256896,1704999039081,-391.09,0.00031604,2]
[311256897,1704999039091,-151.68522207,0.00031624,2]
[311256898,1704999039100,-2128.0,0.00031799,2]
[311256899,1704999039109,-2128.0,0.00031799,2]
[311256900,1704999039119,-2128.0,0.00031799,2]
[311256901,1704999039128,-341986.0555,0.000318,3]
[311256902,1704999039137,-150.28,0.00031864,2]
[311256903,1704999039147,-153.84,0.00031963,2]
[311256904,1704999039156,-155.0,0.00032,2]
[311256905,1704999039167,-297.1247831,0.00032,4]
[311256906,1704999039177,-173559.82731972,0.00032,2]
[311256907,1704999039186,-153.0,0.00032,2]
[311256908,1704999039196,-200.0,0.00032147,11]
[311256909,1704999039206,-166.95,0.0003219,2]
[311256910,1704999039215,-150.28,0.00032343,2]
[311256911,1704999039225,-8305.4368942,0.00032449,4]
[311256912,1704999039234,-151.68522207,0.00032455,2]
[311256913,1704999039243,-391.09,0.00032582,2]
[311256914,1704999039252,-20000.0,0.00032777,2]
[311256915,1704999039262,-150.28,0.00032823,2]
[311256916,1704999039271,-286.80288901,0.00032876,2]
[311256917,1704999039280,-1500.0,0.00032876,2]
[311256918,1704999039290,-153.84,0.00032877,2]
[311256919,1704999039299,-12677.13,0.00032877,2]
[311256920,1704999039309,-51899.73,0.00032877,2]
[311256921,1704999039318,-1486.76,0.00032877,15]
[311256922,1704999039327,-155.0,0.00032877,2]
[311256923,1704999039340,-2160.19019981,0.000329,30]
[311256924,1704999039355,-155.0,0.00033,4]
[311256925,1704999039365,-373.08461011,0.00033,5]
[311256926,1704999039374,-155.0,0.00033,4]
[311256927,1704999039383,-200.0,0.00033017,12]
[311256928,1704999039393,-800.0,0.00033205,2]
[311256929,1704999039402,-151.68522207,0.00033285,2]
[311256930,1704999039413,-150.28,0.00033302,2]
[311256931,1704999039424,-634.64,0.00033423,2]
[311256932,1704999039433,-1500.0,0.00033424,4]
[311256933,1704999039442,-200.0,0.00033555,2]
[311256934,1704999039451,-391.09,0.00033561,2]
[311256935,1704999039460,-153.84,0.0003379,2]
[311256936,1704999039470,-200.0,0.00033888,14]
[311256937,1704999039479,-1500.0,0.00033972,6]
[311256938,1704999039488,-201.6432844,0.00034,2]
[311256939,1704999039498,-802.19636617,0.00034,4]
[311256940,1704999039507,-155.0,0.00034,2]
[311256941,1704999039516,-1000.0,0.00034,4]
[311256942,1704999039526,-150.97896658,0.00034,2]
[311256943,1704999039535,-151.68522207,0.00034115,2]
[311256944,1704999039545,-155.0,0.00034247,2]
[311256945,1704999039554,-348.48495055,0.00034283,6]
[311256946,1704999039563,-8305.4368942,0.00034441,6]
[311256947,1704999039580,-360.053058,0.0003452,2]
[311256948,1704999039589,-532.251055,0.0003452,2]
[311256949,1704999039599,-3420.50405,0.0003452,2]
[311256950,1704999039608,-5020.182967,0.0003452,2]
[311256951,1704999039617,-459.474798,0.0003452,2]
[311256952,1704999039627,-211.17879333,0.0003452,8]
[311256953,1704999039636,-3762.93,0.00034521,2]
[311256954,1704999039646,-391.09,0.00034539,2]
[311256955,1704999039656,-180.0,0.00034658,2]
[311256956,1704999039665,-153.84,0.00034703,2]
[311256957,1704999039675,-362.43,0.00034703,2]
[311256958,1704999039684,-200.0,0.00034758,15]
[311256959,1704999039694,-540.079587,0.00034794,2]
[311256960,1704999039703,-798.376583,0.00034794,2]
[311256961,1704999039712,-5130.756075,0.00034794,2]
[311256962,1704999039721,-7530.274451,0.00034794,2]
[311256964,1704999039730,-689.212197,0.00034794,2]
[311256965,1704999039740,-250.0,0.000349,2]
[311256966,1704999039750,-55555.0,0.000349,3]
[311256967,1704999039759,-8975.54325468,0.000349,4]
[311256968,1704999039768,-2745.13816254,0.000349,2]
[311256969,1704999039778,-2745.13816245,0.000349,2]
[311256970,1704999039787,-2745.13816245,0.000349,2]
[311256971,1704999039797,-2745.13816245,0.000349,2]
[311256972,1704999039806,-2745.13816245,0.000349,2]
[311256973,1704999039816,-2745.13816245,0.000349,2]
[311256974,1704999039828,-2745.13816245,0.000349,2]
[311256975,1704999039838,-2745.13816245,0.000349,2]
[311256976,1704999039851,-655.9768437,0.000349,2]
[311256977,1704999039861,-659.20857414,0.000349,2]
[311256978,1704999039871,-2736.54532927,0.000349,2]
[311256979,1704999039880,-283.9965188,0.000349,2]
[311256980,1704999039891,-720.106116,0.00034931,2]
[311256981,1704999039900,-1064.502111,0.00034931,2]
[311256982,1704999039909,-6841.0081,0.00034931,2]
[311256983,1704999039920,-10040.365934,0.00034931,2]
[311256984,1704999039929,-918.949596,0.00034931,2]
[311256985,1704999039940,-151.68522207,0.00034946,2]
[311256986,1704999039949,-779.30000548,0.0003498,3]
[311256987,1704999039958,-860.95616549,0.0003498,3]
[311256988,1704999039968,-157.5,0.0003498,3]
[311256989,1704999039977,-315.0,0.0003498,3]
[311256990,1704999039986,-157.5,0.0003498,3]
[311256991,1704999039995,-289.48719423,0.00034997,2]
[311256992,1704999040004,-150.0,0.00034999,2]
[311256993,1704999040013,-150.0,0.00034999,2]
[311256994,1704999040022,-153.0,0.00035,2]
[311256995,1704999040031,-153.0,0.00035,2]
[311256996,1704999040040,-156.33793891,0.00035,4]
[311256997,1704999040049,-16499.22203045,0.00035,2]
[311256998,1704999040058,-155.0,0.00035,4]
[311256999,1704999040067,-5000.0,0.00035,2]
[311257000,1704999040076,-2500.0,0.00035,2]
[311257001,1704999040086,-15716.17370559,0.00035,7]
[311257002,1704999040096,-2528.67982368,0.00035,10]
[311257003,1704999040106,-521.99997336,0.00035,4]
[311257004,1704999040116,-619.07656999,0.00035,4]
[311257005,1704999040126,-447.61294847,0.00035,4]
[311257006,1704999040135,-255.41007841,0.00035,4]
[311257007,1704999040145,-1804.3259406,0.00035,4]
[311257008,1704999040154,-193.62121519,0.00035,4]
[311257009,1704999040163,-688706.81421779,0.00035,2]
[311257010,1704999040174,-155.0,0.00035,2]
[311257011,1704999040183,-250.0,0.00035,120]
[311257012,1704999040192,-614.47828093,0.00035,2]
[311257013,1704999040202,-1411.99961524,0.00035,2]
[311257014,1704999040211,-774.8111208,0.00035,2]
[311257015,1704999040221,-450.0,0.0003502,3]
[311257016,1704999040231,-900.132645,0.00035068,2]
[311257017,1704999040241,-1330.627639,0.00035068,2]
[311257018,1704999040250,-8551.260125,0.00035068,2]
[311257019,1704999040259,-12550.457418,0.00035068,2]
[311257020,1704999040269,-1148.686995,0.00035068,2]
[311257021,1704999040278,-2745.13816245,0.00035122,2]
[311257022,1704999040287,-1446.38495656,0.0003534,4]
[311257023,1704999040297,-318.04600868,0.0003534,2]
[311257024,1704999040306,-155.0,0.0003534,2]
[311257025,1704999040315,-26013.478455,0.00035342,2]
[311257027,1704999040324,-1260.185703,0.00035342,2]
[311257028,1704999040333,-1862.878695,0.00035342,2]
[311257029,1704999040342,-11971.764175,0.00035342,2]
[311257030,1704999040352,-17570.640386,0.00035342,2]
[311257031,1704999040361,-1608.161793,0.00035342,2]
[311257032,1704999040371,-391.09,0.00035518,2]
[311257034,1704999040379,-150.0,0.00035616,2]
[311257035,1704999040389,-300.0,0.00035616,7]
[311257036,1704999040398,-486.93691744,0.00035616,12]
[311257037,1704999040407,-153.84,0.00035616,2]
[311257038,1704999040417,-200.0,0.00035616,2]
[311257039,1704999040426,-155.0,0.00035617,2]
[311257040,1704999040435,-200.0,0.00035629,17]
[311257041,1704999040445,-634.64,0.00035687,2]
[311257042,1704999040455,-6639.87,0.000357,7]
[311257043,1704999040464,-5110.81,0.000357,7]
[311257044,1704999040473,-2240.5,0.000357,7]
[311257045,1704999040483,-151.68522207,0.00035776,2]
[311257046,1704999040492,-3762.93,0.00035798,2]
[311257047,1704999040502,-289.48719423,0.00035997,2]
[311257048,1704999040511,-210.58137275,0.00035999,2]
[311257049,1704999040520,-182.23512316,0.00035999,2]
[311257050,1704999040529,-453.43789362,0.00035999,2]
[311257051,1704999040538,-116712.80612642,0.00036,4]
[311257052,1704999040547,-250.0,0.00036,120]
[311257053,1704999040557,-150.0,0.00036009,2]
[311257054,1704999040567,-150.0,0.00036019,2]
[311257055,1704999040576,-2519.26341924,0.00036089,2]
[311257056,1704999040586,-2519.26341924,0.00036089,2]
[311257057,1704999040595,-153.0,0.00036089,2]
[311257058,1704999040756,-153.0,0.00036089,2]
[311257059,1704999040766,-151.0,0.00036212,4]
[311257060,1704999040775,-6827.13684442,0.000363,14]
[311257061,1704999040785,-2473.262251,0.000363,25]
[311257062,1704999040794,-2240.5,0.000364,7]
[311257063,1704999040804,-8305.4368942,0.00036433,9]
[311257064,1704999040813,-391.09,0.00036496,2]
[311257065,1704999040822,-200.0,0.00036499,18]
[311257066,1704999040831,-6639.87,0.000365,7]
[311257067,1704999040841,-6522.32368624,0.000365,6]
[311257068,1704999040855,-5110.81,0.000365,7]
[311257069,1704999040865,-800.0,0.00036525,2]
[311257070,1704999040875,-153.84,0.0003653,2]
[311257071,1704999040886,-151.68522207,0.00036606,2]
[311257072,1704999040895,-1486.76,0.00036613,15]
[311257073,1704999040904,-2745.13816245,0.00036701,2]
[311257074,1704999040914,-200.0,0.00036703,10]
[311257075,1704999040925,-155.2371007,0.0003671,4]
[311257076,1704999040934,-765.08541649,0.00036784,9]
[311257077,1704999040943,-765.08541647,0.00036784,9]
[311257078,1704999040952,-765.08541647,0.00036784,9]
[311257079,1704999040962,-3000.0,0.000368,14]
[311257080,1704999040971,-1500.0,0.000368,25]
[311257081,1704999040981,-3000.0,0.0003681,14]
[311257082,1704999040990,-3000.0,0.0003682,14]
[311257083,1704999041000,-3000.0,0.0003683,14]
[311257084,1704999041010,-3000.0,0.0003684,14]